[Event "4NCL Div 1 2024-25"]
[Site "England"]
[Date "2025.01.26"]
[Round "4.1"]
[White "Harvey, Marcus R"]
[Black "Emms, John M"]
[Result "1-0"]
[Annotator "TA"]
[ECO "A13"]
[WhiteElo "2491"]
[BlackElo "2413"]
[PlyCount "127"]
[EventDate "2024.11.23"]
[EventType "team-tourn"]
[EventCountry "ENG"]
[SourceTitle "playchess.com"]
[Source "ChessBase"]
[SourceQuality "1"]
[TimeControl "40/6000+30:3000+30"]

{[%evp 9,127,0,12,0,2,0,13,-1,-6,-2,0,-48,-41,-30,-34,-63,0,-11,0,0,18,0,51,56,62,55,72,63,51,20,49,40,43,44,47,47,58,56,67,66,65,65,93,70,78,69,70,72,98,86,143,143,150,150,151,150,152,152,154,158,156,158,189,181,302,290,322,321,322,294,318,297,317,307,318,302,354,341,341,353,356,352,343,298,297,276,279,264,450,448,630,599,933,887,897,830,943,572,1132,1003,1197,1375,6070,5579,5081,3656,1719,1779,29977,29971,29969,29971,29976,29978,29978,29979,29987,29982,29981,29982]} 1. c4 {[%emt 0:29:44]} e6 {[%emt 0:10:43]} 2. Nf3 {[%emt 0:00:40]} d5 {[%emt 0:00:35]} 3. e3 {[%emt 0:00:30]} Nf6 {[%emt 0:00:27]} 4. b3 {[%emt 0:00:22]} c5 {[%emt 0:00:42]} 5. cxd5 {[%emt 0:02:16]} exd5 {[%emt 0:00:21]} 6. Bb5+ {[%emt 0:00:47] A13: English Opening: 1...e6.} Nc6 {[%emt 0:02:16]} 7. O-O {[%emt 0:00:47]} Bd6 {[%emt 0:01:29]} 8. d4 {[%emt 0:03:37] The position is equal.} cxd4 {[%emt 0:01:44]} 9. Qxd4 {[%emt 0:04:36]} O-O {[%emt 0:00:57]} 10. Qh4 $146 {[%emt 0:08:53]} (10. Bxc6 $11 bxc6 11. Ba3) (10. Bxc6 bxc6 11. Bb2 c5 12. Qd3 Bb7 13. Nc3 Rc8 14. Rfd1 Qe7 15. Qf5 Qe6 16. Qxe6 fxe6 {½-½ Maghsoodloo,P (2572)-Hakobyan,A (2479) Yerevan Margaryan Memorial 2018 (4)}) 10... a6 $15 {[%emt 0:29:34]} 11. Bxc6 {[%emt 0:03:37]} bxc6 {[%emt 0:00:17]} 12. Ba3 {[%emt 0:00:18]} Bxa3 {[%emt 0:06:12]} (12... c5 $15 13. Nc3 Be6) 13. Nxa3 $11 {[%emt 0:00:02]} Qd6 {[%emt 0:01:40]} 14. Nb1 {[%emt 0:01:38]} Ne4 {[%emt 0:11:10]} 15. Rc1 {[%emt 0:01:11]} a5 {[%emt 0:20:16]} (15... c5 $11) 16. Nc3 $14 {[%emt 0:01:05] A sharp opening} Nxc3 {[%emt 0:06:35]} 17. Rxc3 {[%emt 0:00:20]} Bd7 {[%emt 0:00:07]} 18. Qg3 {[%emt 0:06:14]} Qb4 {[%emt 0:04:01]} 19. Rcc1 {[%emt 0:43:23]} Rfc8 {[%emt 0:03:52]} 20. Ne5 {[%emt 0:00:00]} Qe7 {[%emt 0:00:17]} 21. Nxd7 {[%emt 0:00:00]} Qxd7 {[%emt 0:00:01]} 22. Rc5 {[%emt 0:00:00]} Qb7 {[%emt 0:02:56]} 23. Qf4 {[%emt 0:00:00]} Qb4 {[%emt 0:02:46]} 24. Rac1 {[%emt 0:00:00]} Qxf4 {[%emt 0:00:24]} 25. exf4 {[%emt 0:00:00][%mdl 4096] Endgame KRR-KRR} Kf8 {[%emt 0:00:41]} 26. Kf1 {[%emt 0:00:00] White is more active.} Ke7 {[%emt 0:00:21]} 27. Rxc6 {[%emt 0:00:00]} Rxc6 {[%emt 0:00:06]} 28. Rxc6 $16 {[%emt 0:00:00] KR-KR. White is a pawn up. Black is on the road to losing.} a4 {[%emt 0:01:29]} 29. b4 {[%emt 0:00:00]} a3 {[%emt 0:00:06]} (29... Kd7 $142 30. Rc3 Kd6) 30. Rc3 {[%emt 0:00:00]} Kd6 {[%emt 0:00:48]} 31. Ke2 {[%emt 0:00:00]} Re8+ {[%emt 0:02:02]} 32. Re3 {[%emt 0:00:00]} Rb8 {[%emt 0:00:01]} 33. Rb3 {[%emt 0:00:00]} (33. Rxa3 $6 Rxb4 34. Kf3 g6 $14) 33... Kc6 {[%emt 0:01:27]} 34. Kd3 {[%emt 0:00:00]} (34. Rxa3 Rxb4 35. g3 Rb7 $14) 34... Ra8 {[%emt 0:00:32]} 35. Rc3+ {[%emt 0:00:00]} (35. Kd4 Kb5 36. g3 (36. Kxd5 Rd8+ 37. Ke4 Re8+ 38. Kd3 Rd8+ 39. Ke3 Ra8 $18) 36... Kc6 37. b5+ Kb6 $16) 35... Kb5 {[%emt 0:00:22] [#]} 36. Rc7 $1 {[%emt 0:00:00]} Kxb4 {[%emt 0:00:38]} (36... Rf8 {was necessary.} 37. Rb7+ Kc6) 37. Rxf7 $18 {[%emt 0:00:00]} Kc5 {[%emt 0:00:29]} 38. Rxg7 {[%emt 0:00:00]} Rb8 {[%emt 0:00:08]} 39. Rc7+ {[%emt 0:00:00]} Kd6 {[%emt 0:00:20]} 40. Rc3 {[%emt 0:00:00]} (40. Rxh7 Rb2 $16) 40... Rb2 {[%emt 0:00:21] [#]} 41. Rc2 $1 {[%emt 0:42:49]} (41. Rxa3 Rxf2 42. Ra6+ Kc5 $16) 41... Rb4 {[%emt 0:24:46]} 42. g3 {[%emt 0:00:00]} Ke6 {[%emt 0:04:17]} 43. Rc6+ {[%emt 0:00:00]} Kf7 {[%emt 0:01:50]} 44. Rc3 {[%emt 0:00:00]} Rb2 {[%emt 0:00:31]} 45. Rc2 {[%emt 0:00:00] Threatens to win with Rxb2.} (45. Rxa3 Rxf2 46. Kd4 Ke6 $16) 45... Rb4 {[%emt 0:01:10]} 46. Kc3 {[%emt 0:00:00]} Rb1 {[%emt 0:02:50]} 47. Re2 {[%emt 0:00:00]} ({Not} 47. Kd4 Rd1+ 48. Ke3 (48. Ke5 d4 $18) 48... Ra1 $16) 47... h5 {[%emt 0:02:34]} 48. Re5 {[%emt 0:00:00]} Rb2 $2 {[%emt 0:00:45]} (48... h4 49. Rh5 (49. Rxd5 Rh1 $18) (49. gxh4 Rb2 $11) 49... Rb2) 49. Rxd5 {[%emt 0:00:00]} Rxa2 {[%emt 0:00:50]} (49... Kg6 $142 50. Rd2 Rb7 51. Rd6+ Kf5) 50. Rxh5 {[%emt 0:00:00]} Rxf2 {[%emt 0:00:07]} 51. Ra5 {[%emt 0:00:00]} a2 {[%emt 0:00:40]} 52. Kd4 {[%emt 0:00:00]} Rxh2 {[%emt 0:03:49]} 53. Ke4 {[%emt 0:00:00]} Ke7 {[%emt 0:08:49]} 54. g4 {[%emt 0:00:00][%cal Bg3g4,Bg4g5][%mdl 32]} Rb2 {[%emt 0:01:25]} 55. g5 {[%emt 0:00:00]} Rb4+ {[%emt 0:00:41]} 56. Kf3 {[%emt 0:00:00]} Rb2 {[%emt 0:00:03]} 57. Kg4 {[%emt 0:00:00]} Kf7 {[%emt 0:00:48]} 58. Ra7+ {[%emt 0:00:00]} Kg8 {[%emt 0:00:12]} 59. Kf5 {[%emt 0:00:00] White mates.} Rf2 {[%emt 0:00:19]} 60. Ke5 {[%emt 0:00:00]} Kf8 {[%emt 0:01:24]} 61. f5 {[%emt 0:00:00]} Rb2 {[%emt 0:00:09]} 62. g6 {[%emt 0:01:18]} Kg8 {[%emt 0:00:24]} 63. Kf6 {[%emt 0:00:06]} Rb6+ {[%emt 0:00:07]} 64. Kg5 {[%emt 0:00:06] Weighted Error Value: White=0.15 (very precise) /Black=0.60  Mistake:       	White=1     	Black=6      Inaccurate:     	White=2     	Black=4      OK:         	White=16    	Black=11     Best:        	White=7     	Black=1      Strong:       	White=1     	---} 1-0

[Event "4NCL Div 1 2024-25"]
[Site "England"]
[Date "2025.01.26"]
[Round "4.2"]
[White "Palliser, Richard J D"]
[Black "Speelman, Jon S"]
[Result "1/2-1/2"]
[Annotator "TA"]
[ECO "B15"]
[WhiteElo "2369"]
[BlackElo "2499"]
[PlyCount "62"]
[EventDate "2024.11.23"]
[EventType "team-tourn"]
[EventCountry "ENG"]
[SourceTitle "playchess.com"]
[Source "ChessBase"]
[SourceQuality "1"]
[TimeControl "40/6000+30:3000+30"]

{[%evp 10,62,41,20,9,15,25,6,11,0,0,0,10,17,8,15,27,23,27,31,22,22,49,4,0,-9,-4,-10,-8,-9,-10,-24,-7,-8,0,0,0,0,0,-8,0,0,0,-19,0,0,47,0,24,0,0,0,0,-6,4]} 1. e4 {[%emt 0:10:07]} c6 {[%emt 0:10:13]} 2. d4 {[%emt 0:00:08]} d5 {[%emt 0:00:05]} 3. Nc3 {[%emt 0:00:06]} dxe4 {[%emt 0:00:35]} 4. Nxe4 {[%emt 0:00:06]} Nf6 {[%emt 0:00:06]} 5. Nxf6+ {[%emt 0:00:22]} exf6 {[%emt 0:00:06]} 6. Be3 {[%emt 0:00:16]} Bd6 {[%emt 0:02:08] B15: Caro-Kann: 3 Nc3: 3...g6 and 3...dxe4 4 Nxe4 Nf6 5 Nxf6+ exf6.} 7. Bd3 {[%emt 0:00:16]} O-O {[%emt 0:01:49]} 8. Ne2 {[%emt 0:00:22]} Na6 {[%emt 0:02:07][%cal Bb8a6,Ba6c7,Bc7e6,Be6c5][%mdl 32]} 9. a3 {[%emt 0:06:30] Prevents Nb4} Re8 {[%emt 0:05:30]} 10. O-O $1 {[%emt 0:00:30]} Nc7 {[%emt 0:03:34]} 11. c4 {[%emt 0:00:37][%cal Bc2c4,Bc4d5][%mdl 32]} f5 {[%emt 0:02:19]} 12. Re1 $146 {[%emt 0:16:39]} (12. Qd2 h6 13. Rfe1 Bd7 14. Bf4 Qf6 15. Bc2 Rad8 16. Rad1 Bc8 17. Bxd6 Rxd6 18. Qa5 {1-0 Livaic,L (2549)-Pfreundt,J (2455) Bundesliga 2324 2023 (14.1)}) 12... Qf6 {[%emt 0:05:47]} 13. Qd2 {[%emt 0:09:47]} Ne6 {[%emt 0:13:12]} 14. d5 {[%emt 0:05:56]} cxd5 {[%emt 0:00:44]} 15. cxd5 {[%emt 0:00:06]} Nc5 {[%emt 0:01:25]} 16. Bg5 {[%emt 0:20:38]} Qg6 {[%emt 0:00:07] ...Nxd3 would now be deadly.} 17. Nd4 {[%emt 0:27:09]} Bd7 {[%emt 0:02:03][%cal Bc8d7,Bd7b5,Bb5d3][%mdl 32]} (17... Rxe1+ 18. Rxe1 Bd7 (18... Nxd3 $2 19. Re8+ Bf8 20. Be7 $18) 19. Bc2) 18. Bc2 {[%emt 0:02:04]} Ne4 {[%emt 0:01:47]} 19. Bxe4 {[%emt 0:00:11]} fxe4 {[%emt 0:00:07]} 20. Bf4 {[%emt 0:00:21] Prevents Re5} Rad8 {[%emt 0:01:55]} 21. Ne2 {[%emt 0:02:46]} Bb5 {[%emt 0:08:05]} 22. Nc3 {[%emt 0:01:09]} Bd3 {[%emt 0:00:34]} 23. Bxd6 {[%emt 0:01:36]} Qxd6 {[%emt 0:00:09]} 24. Qe3 {[%emt 0:00:58]} b6 {[%emt 0:02:27]} 25. Rad1 {[%emt 0:00:07] [#]} f5 {[%emt 0:01:01]} 26. Qd4 {[%emt 0:01:53]} Kf7 {[%emt 0:01:04]} 27. f3 {[%emt 0:00:18][%cal Rf3e4]} Qf6 {[%emt 0:01:11]} (27... Qc5 $11 {might be stronger.} 28. Qxc5 bxc5) 28. Qf2 {[%emt 0:01:02]} (28. Qa4 $1 $14 Qg6 29. Qxa7+ Kg8 30. fxe4 fxe4 31. Qa4) 28... Re7 {[%emt 0:02:40]} 29. fxe4 {[%emt 0:01:05]} fxe4 {[%emt 0:00:43] The position is equal.} 30. Qe3 {[%emt 0:00:27][%cal Oe1f1] [#] Rf1! is the strong threat.} Qd6 {[%emt 0:03:33]} 31. Rd2 {[%emt 0:00:31]} Qc5 {[%emt 0:01:31] Weighted Error Value: White=0.09 (flawless) /Black=0.09 (flawless)   Mistake:       	White=1     	Black=1      Inaccurate:     	White=1     	Black=1      OK:         	White=13    	Black=8      Strong:       	White=1     	---} 1/2-1/2

[Event "4NCL Div 1 2024-25"]
[Site "England"]
[Date "2025.01.26"]
[Round "4.3"]
[White "Tan, Justin"]
[Black "Chow, Samuel"]
[Result "1-0"]
[Annotator "TA"]
[ECO "C11"]
[WhiteElo "2507"]
[BlackElo "2348"]
[PlyCount "61"]
[EventDate "2024.11.23"]
[EventType "team-tourn"]
[EventCountry "ENG"]
[SourceTitle "playchess.com"]
[Source "ChessBase"]
[SourceQuality "1"]
[TimeControl "40/6000+30:3000+30"]

{[%evp 13,61,0,27,18,32,26,27,17,20,-8,0,-2,12,9,53,29,53,46,52,46,60,53,52,51,112,116,111,106,168,145,359,353,325,211,335,335,323,278,937,900,888,821,2710,1396,2725,2805,2672,2608,29990,29991]} 1. e4 {[%emt 0:16:18]} e6 {[%emt 0:10:14]} 2. d4 {[%emt 0:00:28]} d5 {[%emt 0:00:08]} 3. Nc3 {[%emt 0:00:05]} Nf6 {[%emt 0:00:30]} 4. e5 {[%emt 0:00:24]} Nfd7 {[%emt 0:00:09]} 5. f4 {[%emt 0:00:06]} c5 {[%emt 0:00:06]} 6. Nf3 {[%emt 0:00:08]} Nc6 {[%emt 0:00:43]} 7. Be3 {[%emt 0:00:06]} a6 {[%emt 0:00:31]} 8. Ne2 {[%emt 0:00:14] C11: French: Classical System: 4 e5 and 4 Bg5 dxe4.} Qb6 {[%emt 0:00:44] 8...Qb6 scores better than 8...b5.} 9. Qc1 {[%emt 0:00:09]} Be7 {[%emt 0:00:34]} 10. c3 {[%emt 0:00:07] White has an edge.} O-O {[%emt 0:00:10]} 11. h4 {[%emt 0:01:40][%cal Bh2h4,Bh4h5][%mdl 32]} f6 {[%emt 0:02:02]} 12. Rh3 {[%emt 0:06:16]} cxd4 $146 {[%emt 0:07:47]} (12... Qa5 13. a3 Nxd4 14. Nexd4 cxd4 15. b4 Qc7 16. cxd4 Qxc1+ 17. Rxc1 Nb6 18. h5 f5 {0-1 Kramnik,V (2753)-Bluebaum,M (2672) Titled Tuesday intern op 25th Jul Late blitz 2023 (6)}) 13. cxd4 {[%emt 0:11:57]} Rf7 {[%emt 0:03:14]} 14. h5 {[%emt 0:10:39]} fxe5 {[%emt 0:08:03]} 15. fxe5 {[%emt 0:02:02]} Nf8 {[%emt 0:01:05]} 16. Kf2 {[%emt 0:19:53]} Bd7 {[%emt 0:01:11]} 17. Kg1 {[%emt 0:01:57]} Rc8 {[%emt 0:00:44][%cal Oc6e5] [#] Hoping for ...Nxe5!.} 18. Qd2 {[%emt 0:04:50]} Qb4 {[%emt 0:07:09]} (18... Na5 $14) 19. Nc3 $16 {[%emt 0:02:16]} Na5 {[%emt 0:01:03]} 20. h6 {[%emt 0:03:34]} g6 {[%emt 0:02:45] [#]} (20... Ng6 $16) 21. Bg5 $1 $18 {[%emt 0:01:57]} Nc4 $2 {[%emt 0:19:31] Loses the game.} (21... Bc6 $16 22. Rd1 Be8) 22. Bxc4 {[%emt 0:01:44]} Rxc4 {[%emt 0:00:38]} 23. Bxe7 {[%emt 0:01:06]} Rxe7 {[%emt 0:01:08]} (23... Qxe7 {was necessary.} 24. b3 Rb4) 24. a3 {[%emt 0:04:32]} Qb6 {[%emt 0:00:46]} 25. Rh4 {[%emt 0:00:25]} Bc8 $2 {[%emt 0:06:43]} (25... Rf7 26. Nd1 Rf5) 26. Ng5 {[%emt 0:05:31][%cal Bf3g5,Bg5f7,Bf7e5][%mdl 32]} Nd7 {[%emt 0:04:25]} 27. Rf1 {[%emt 0:00:23]} Nxe5 {[%emt 0:02:52]} 28. Rhf4 {[%emt 0:01:29]} Nd7 {[%emt 0:02:22]} 29. Qf2 {[%emt 0:00:38]} (29. Nf7 Rxd4 30. Qxd4 (30. Rxd4 Rxf7 31. Rf2 Rxf2 $16) 30... Qxd4+ 31. Rxd4 Rxf7 $16) 29... Qd8 {[%emt 0:00:26] Dodges Rf8+} 30. Nf7 {[%emt 0:00:22] Excellent horsemanship. Black is weak on the dark squares} Qe8 {[%emt 0:03:55]} 31. Ne5 {[%emt 0:00:54] Weighted Error Value: White=0.38/Black=1.11  Loses game:     	---       	Black=1      Mistake:       	---       	Black=4      Inaccurate:     	White=2     	Black=1      OK:         	White=6     	Black=5      Best:        	White=3     	---} 1-0

[Event "4NCL Div 1 2024-25"]
[Site "England"]
[Date "2025.01.26"]
[Round "4.4"]
[White "Turner, Max N"]
[Black "Turner, Matthew J"]
[Result "1/2-1/2"]
[Annotator "TA"]
[ECO "E61"]
[WhiteElo "2247"]
[BlackElo "2432"]
[PlyCount "120"]
[EventDate "2024.11.23"]
[EventType "team-tourn"]
[EventCountry "ENG"]
[SourceTitle "playchess.com"]
[Source "ChessBase"]
[SourceQuality "1"]
[TimeControl "40/6000+30:3000+30"]

{[%evp 11,119,37,52,29,30,32,36,27,31,33,30,0,10,6,25,24,31,33,30,26,29,26,29,0,0,-32,-37,-28,-27,-50,-41,-35,-35,-34,-33,-91,-79,-172,-172,-165,-179,-166,-154,-156,-156,-148,-130,-130,-126,-130,-120,-150,-139,-148,-131,-243,-249,-242,-181,-185,-190,-202,-180,-208,-201,-195,-166,-159,-160,-312,-298,-252,-226,-192,-29,-44,0,0,0,0,0,0,0,0,0,0,0,0,0,0,0,0,0,0,0,0,0,0,0,0,0,0,0,0,0,0,0,0,0,0]} 1. d4 {[%emt 0:10:04]} Nf6 {[%emt 0:10:12]} 2. c4 {[%emt 0:00:09]} g6 {[%emt 0:00:09]} 3. Nf3 {[%emt 0:00:14]} Bg7 {[%emt 0:00:11]} 4. e3 {[%emt 0:00:18]} O-O {[%emt 0:00:34]} 5. Be2 {[%emt 0:00:08]} d6 {[%emt 0:03:51]} 6. Nc3 {[%emt 0:00:21]} Nc6 {[%emt 0:02:20]} 7. d5 {[%emt 0:01:14]} Nb4 {[%emt 0:01:02]} 8. O-O {[%emt 0:02:23]} e6 {[%emt 0:00:46]} 9. dxe6 {[%emt 0:06:16] White is slightly better.} Bxe6 {[%emt 0:01:05]} 10. Nd4 {[%emt 0:02:15]} Bd7 {[%emt 0:01:46]} 11. Bf3 {[%emt 0:03:39]} Nc6 {[%emt 0:01:56]} 12. b3 {[%emt 0:01:53]} Nxd4 {[%emt 0:03:53]} 13. exd4 {[%emt 0:00:47]} Rb8 {[%emt 0:00:51]} 14. Bf4 {[%emt 0:03:04]} Re8 {[%emt 0:03:47]} 15. Rc1 {[%emt 0:08:58]} Bf5 {[%emt 0:05:08]} 16. g4 {[%emt 0:12:32]} Be4 {[%emt 0:02:15]} 17. Nxe4 {[%emt 0:13:01]} Nxe4 {[%emt 0:00:18]} 18. Be3 {[%emt 0:07:42]} Qh4 {[%emt 0:04:30]} 19. Bg2 {[%emt 0:05:43]} Re7 {[%emt 0:05:00]} 20. Qf3 {[%emt 0:03:59]} Bh6 {[%emt 0:05:49]} 21. Bxh6 {[%emt 0:08:01]} Qxh6 {[%emt 0:00:24]} 22. Qe3 {[%emt 0:01:46] Repels Nd2} Qh4 {[%emt 0:02:32]} (22... Qxe3 {simplifies} 23. fxe3 Rbe8 24. Rf4 c6) 23. Qf4 {[%emt 0:02:53]} (23. f3 $15 Nc5 24. Qd2) 23... Rbe8 $17 {[%emt 0:01:01]} 24. Rfe1 {[%emt 0:05:13] [#]} (24. h3 $17 {was called for.}) 24... Nc3 $1 $19 {[%emt 0:01:50][%mdl 512]} 25. Rxe7 {[%emt 0:02:18]} Qxe7 {[%emt 0:00:05]} 26. Bf3 {[%emt 0:00:36]} Ne2+ $1 {[%emt 0:00:52]} ({Resist} 26... Nxa2 27. Ra1 Nc3 28. Qd2 $17) 27. Bxe2 {[%emt 0:00:05]} Qxe2 $17 {[%emt 0:00:11][%mdl 4096] Endgame. KQR-KQR} 28. h3 {[%emt 0:01:35]} Qxa2 {[%emt 0:01:22]} 29. Qf3 {[%emt 0:01:51]} Qb2 {[%emt 0:01:00][%csl LRc1,LRd4]} 30. Rd1 {[%emt 0:01:02]} c6 {[%emt 0:01:46]} 31. Qg3 {[%emt 0:00:56]} Re4 {[%emt 0:06:04]} 32. d5 {[%emt 0:01:56] [#]} c5 {[%emt 0:02:07]} 33. Rd3 {[%emt 0:01:42]} (33. Qxd6 $2 {too greedy.} Qxb3 34. Kg2 Qxd1 $19) (33. Kg2 $17 {is a better defense.}) 33... Re1+ {[%emt 0:03:47]} 34. Kh2 {[%emt 0:00:50]} Qe5 {[%emt 0:02:10]} 35. Qxe5 {[%emt 0:00:06]} Rxe5 $19 {[%emt 0:00:04] KR-KR} 36. Kg3 {[%emt 0:00:40]} Re2 {[%emt 0:00:41]} 37. h4 {[%emt 0:00:47]} Rb2 {[%emt 0:00:27]} 38. Re3 {[%emt 0:00:22]} Kf8 {[%emt 0:00:25]} 39. h5 {[%emt 0:00:18]} a6 {[%emt 0:00:56]} 40. f3 $2 {[%emt 0:01:43]} (40. h6 $17) 40... gxh5 {[%emt 0:01:57]} 41. gxh5 {[%emt 0:50:08]} h6 {[%emt 0:50:53]} 42. Kg4 {[%emt 0:00:00] [#]} b5 $2 {[%emt 0:00:00]} (42... Rg2+ $1 $19 43. Kh3 Rg5) 43. Kf5 {[%emt 0:00:00]} Rh2 {[%emt 0:00:00]} 44. f4 $1 {[%emt 0:00:00] The position is equal.} Rh4 {[%emt 0:00:00]} 45. Re2 {[%emt 0:00:00]} bxc4 {[%emt 0:00:00]} 46. bxc4 {[%emt 0:00:00]} a5 {[%emt 0:00:00]} 47. Ra2 {[%emt 0:00:00]} Ke7 {[%emt 0:00:00]} 48. Rxa5 {[%emt 0:00:00]} Rxh5+ {[%emt 0:00:00]} 49. Kg4 {[%emt 0:00:00]} Rh1 {[%emt 0:00:00]} 50. Kf5 {[%emt 0:00:00] Strongly threatening Ra7+.} Rg1 {[%emt 0:00:00]} 51. Ra3 {[%emt 0:00:00]} Kf8 {[%emt 0:00:00]} 52. Kf6 {[%emt 0:00:00][%cal Ra3a8]} Rg6+ {[%emt 0:00:00]} 53. Kf5 {[%emt 0:00:00]} Kg7 {[%emt 0:00:00]} 54. Rh3 {[%emt 0:00:00]} Rg1 {[%emt 0:03:08]} 55. Rh2 {[%emt 0:00:00]} h5 {[%emt 0:03:12]} 56. Rxh5 {[%emt 0:00:00]} Rc1 {[%emt 0:00:11]} 57. Rg5+ {[%emt 0:01:20]} Kf8 {[%emt 0:00:06]} 58. Kf6 {[%emt 0:00:54]} Rxc4 {[%emt 0:00:08]} 59. f5 $1 {[%emt 0:00:16]} Rh4 {[%emt 0:00:17]} 60. Rh5 {[%emt 0:00:07]} Rxh5 {[%emt 0:00:31] White happily takes the draw.   Weighted Error Value: White=0.13 (very precise) /Black=0.10 (very precise) .  Missed win:     	---       	Black=1      Mistake:       	White=4     	---        Inaccurate:     	White=2     	Black=1      OK:         	White=19    	Black=15     Best:        	White=3     	Black=6      Strong:       	White=2     	Black=1      Brilliant:      	---       	Black=1} 1/2-1/2